fUSD/lending_fUSD_20250916
["ID","MTS","AMOUNT","RATE_DAILY","PERIOD"]
[385794558,1758045048422,-400.0,0.00030136,6]
[385794559,1758045048432,-400.0,0.00030136,6]
[385794560,1758045048441,-400.0,0.00030136,6]
[385794561,1758045048451,-496.89,0.00030136,6]
[385794562,1758045048459,-400.0,0.00030136,6]
[385794563,1758045048469,-400.0,0.00030136,6]
[385794564,1758045048478,-400.0,0.00030136,6]
[385794565,1758045048488,-588.77,0.00030136,6]
[385794566,1758045048497,-400.0,0.00030136,6]
[385794567,1758045048506,-500.0,0.00030136,6]
[385794568,1758045048515,-400.0,0.00030136,6]
[385794569,1758045048524,-905.54,0.00030136,6]
[385794570,1758045048533,-400.0,0.00030136,6]
[385794571,1758045048785,-401.41037266,0.00030136,6]
[385794572,1758045048795,-400.0,0.00030136,6]
[385794573,1758045048805,-400.0,0.00030136,6]
[385794574,1758045048817,-542.3878559,0.00030136,6]
[385794575,1758045048826,-400.0,0.00030136,6]
[385794576,1758045048836,-500.0,0.00030136,6]
[385794577,1758045048846,-400.0,0.00030136,6]
[385794578,1758045048856,-500.0,0.00030136,6]
[385794579,1758045048865,-400.0,0.00030136,6]
[385794580,1758045048875,-500.0,0.00030136,6]
[385794581,1758045048885,-414.67101968,0.00030136,6]
[385794582,1758045048895,-400.0,0.00030136,6]
[385794583,1758045048907,-400.0,0.00030136,6]
[385794584,1758045048917,-400.0,0.00030136,6]
[385794585,1758045048927,-400.0,0.00030136,6]
[385794586,1758045048940,-400.0,0.00030136,6]
[385794587,1758045048949,-502.09273062,0.00030136,6]
[385794588,1758045048959,-400.0,0.00030136,6]
[385794589,1758045048968,-400.0,0.00030136,6]
[385794590,1758045048978,-400.0,0.00030136,6]
[385794591,1758045048988,-641.09,0.00030136,6]
[385794592,1758045048998,-402.60353317,0.00030136,6]
[385794593,1758045049008,-400.0,0.00030136,6]
[385794594,1758045049017,-532.75,0.00030136,6]
[385794595,1758045049027,-579.7,0.00030136,6]
[385794596,1758045049036,-507.57,0.00030136,6]
[385794597,1758045049047,-400.0,0.00030136,6]
[385794598,1758045049057,-402.72813418,0.00030136,6]
[385794599,1758045049067,-400.0,0.00030136,6]
[385794600,1758045049076,-400.0,0.00030136,6]
[385794601,1758045049085,-400.0,0.00030136,6]
[385794602,1758045049095,-400.0,0.00030136,6]
[385794603,1758045049105,-405.03,0.00030136,6]
[385794604,1758045049115,-400.0,0.00030136,6]
[385794605,1758045049124,-777.27,0.00030136,6]
[385794606,1758045049134,-400.0,0.00030136,6]
[385794607,1758045049144,-401.908826,0.00030136,6]
[385794608,1758045049155,-151.0,0.00030136,7]
[385794609,1758045049169,-400.0,0.00030136,6]
[385794610,1758045049179,-151.0,0.00030136,7]
[385794611,1758045049189,-151.0,0.00030136,7]
[385794612,1758045049199,-400.0,0.00030136,6]
[385794613,1758045049208,-500.0,0.00030136,6]
[385794614,1758045049218,-400.0,0.00030136,6]
[385794615,1758045049228,-500.0,0.00030136,6]
[385794616,1758045049237,-576.52,0.00030136,6]
[385794617,1758045049247,-500.0,0.00030136,6]
[385794618,1758045049257,-500.0,0.00030136,6]
[385794619,1758045049266,-500.0,0.00030136,6]
[385794620,1758045049275,-695.61,0.00030136,6]
[385794621,1758045049284,-500.0,0.00030136,6]
[385794622,1758045049293,-500.0,0.00030136,6]
[385794623,1758045049302,-400.0,0.00030136,6]
[385794624,1758045049312,-500.0,0.00030136,6]
[385794625,1758045049321,-500.0,0.00030136,6]
[385794626,1758045049330,-400.0,0.00030136,6]
[385794627,1758045049340,-400.0,0.00030136,6]
[385794628,1758045049349,-400.0,0.00030136,6]
[385794629,1758045049359,-400.0,0.00030136,6]
[385794630,1758045049368,-400.0,0.00030136,6]
[385794631,1758045049378,-400.0,0.00030136,6]
[385794632,1758045049387,-400.0,0.00030136,6]
[385794633,1758045049397,-631.9,0.00030136,6]
[385794634,1758045049406,-401.82601991,0.00030136,6]
[385794635,1758045049415,-717.16,0.00030136,6]
[385794636,1758045049424,-400.0,0.00030136,6]
[385794637,1758045049436,-478.54,0.00030136,6]
[385794638,1758045049445,-487.24,0.00030136,6]
[385794639,1758045049455,-400.0,0.00030136,6]
[385794640,1758045049464,-1000.0,0.00030136,6]
[385794641,1758045049473,-441.0,0.00030136,6]
[385794642,1758045049482,-400.0,0.00030136,6]
[385794643,1758045049491,-400.0,0.00030136,6]
[385794644,1758045049501,-400.0,0.00030136,6]
[385794645,1758045049511,-400.0,0.00030136,6]
[385794646,1758045049520,-400.0,0.00030136,6]
[385794647,1758045049529,-466.86,0.00030136,6]
[385794648,1758045049538,-606.89,0.00030136,6]
[385794649,1758045049547,-400.0,0.00030136,6]
[385794650,1758045049557,-400.0,0.00030136,6]
[385794651,1758045049566,-400.0,0.00030136,6]
[385794652,1758045049575,-400.0,0.00030136,6]
[385794653,1758045049585,-1627.29,0.00030136,6]
[385794654,1758045049594,-400.0,0.00030136,6]
[385794655,1758045049603,-400.0,0.00030136,6]
[385794656,1758045049612,-400.0,0.00030136,6]
[385794657,1758045049621,-400.0,0.00030136,6]
[385794658,1758045049631,-400.0,0.00030136,6]
[385794659,1758045049640,-400.0,0.00030136,6]
[385794660,1758045049649,-400.0,0.00030136,6]
[385794661,1758045049658,-400.0,0.00030136,6]
[385794662,1758045049668,-500.0,0.00030136,6]
[385794663,1758045049679,-500.0,0.00030136,6]
[385794664,1758045049688,-500.0,0.00030136,6]
[385794665,1758045049697,-610.28,0.00030136,6]
[385794666,1758045049707,-500.0,0.00030136,6]
[385794667,1758045049716,-336.76620296,0.00030136,6]
[385794668,1758045049725,-400.89986747,0.00030136,6]
[385794669,1758045049738,-400.0,0.00030136,6]
[385794670,1758045049748,-400.0,0.00030136,6]
[385794671,1758045049758,-419.24,0.00030136,6]
[385794672,1758045049767,-400.0,0.00030136,6]
[385794673,1758045049777,-400.0,0.00030136,6]
[385794674,1758045049786,-400.0,0.00030136,6]
[385794675,1758045049796,-500.0,0.00030136,6]
[385794676,1758045049805,-500.0,0.00030136,6]
[385794677,1758045049816,-400.0,0.00030136,6]
[385794678,1758045049825,-400.0,0.00030136,6]
[385794679,1758045049835,-400.0,0.00030136,6]
[385794680,1758045049844,-400.0,0.00030136,6]
[385794681,1758045049853,-400.0,0.00030136,6]
[385794682,1758045049862,-400.0,0.00030136,6]
[385794683,1758045049872,-400.0,0.00030136,6]
[385794684,1758045049881,-151.0,0.00030136,7]
[385794685,1758045049891,-279.953128,0.00030136,7]
[385794686,1758045049900,-400.0,0.00030136,6]
[385794687,1758045049909,-400.0,0.00030136,6]
[385794688,1758045049918,-562.37,0.00030136,6]
[385794689,1758045049927,-400.0,0.00030136,6]
[385794690,1758045049937,-400.0,0.00030136,6]
[385794691,1758045049946,-488.31,0.00030136,6]
[385794692,1758045049955,-588.86,0.00030136,6]
[385794693,1758045049963,-402.51386764,0.00030136,6]
[385794694,1758045049972,-400.0,0.00030136,6]
[385794695,1758045049981,-638.4,0.00030136,6]
[385794696,1758045049991,-400.0,0.00030136,6]
[385794697,1758045050000,-277.41643197,0.00030136,6]
[385794698,1758045050010,-520.53,0.00030136,6]
[385794699,1758045050019,-405.7,0.00030136,6]
[385794700,1758045050028,-400.0,0.00030136,6]
[385794701,1758045050037,-400.0,0.00030136,6]
[385794702,1758045050046,-151.0,0.00030136,7]
[385794703,1758045050055,-151.0,0.00030136,7]
[385794704,1758045050064,-151.0,0.00030136,7]
[385794705,1758045050074,-502.07418249,0.00030136,6]
[385794706,1758045050083,-151.0,0.00030136,7]
[385794707,1758045050092,-465.88,0.00030136,6]
[385794708,1758045050101,-400.0,0.00030136,6]
[385794709,1758045050111,-400.0,0.00030136,6]
[385794710,1758045050120,-400.0,0.00030136,6]
[385794711,1758045050129,-400.0,0.00030136,6]
[385794712,1758045050138,-1037.29,0.00030136,6]
[385794713,1758045050147,-400.0,0.00030136,6]
[385794714,1758045050156,-449.67,0.00030136,6]
[385794715,1758045050167,-400.0,0.00030136,6]
[385794716,1758045050176,-400.0,0.00030136,6]
[385794717,1758045050188,-577.75,0.00030136,6]
[385794718,1758045050197,-400.0,0.00030136,6]
[385794719,1758045050207,-671.7,0.00030136,6]
[385794720,1758045050217,-400.97196716,0.00030136,6]
[385794721,1758045050226,-400.0,0.00030136,6]
[385794722,1758045050235,-400.0,0.00030136,6]
[385794723,1758045050244,-400.0,0.00030136,6]
[385794724,1758045050253,-402.75026436,0.00030136,6]
[385794725,1758045050262,-400.0,0.00030136,6]
[385794726,1758045050271,-400.0,0.00030136,6]
[385794727,1758045050280,-400.0,0.00030136,6]
[385794728,1758045050289,-479.19,0.00030136,6]
[385794729,1758045050298,-595.12,0.00030136,6]
[385794730,1758045050307,-410.20645907,0.00030136,6]
[385794731,1758045050316,-306.1026314,0.00030136,6]
[385794732,1758045050325,-400.0,0.00030136,6]
[385794733,1758045050334,-400.69277837,0.00030136,6]
[385794734,1758045050343,-400.0,0.00030136,6]
[385794735,1758045050352,-400.0,0.00030136,6]
[385794736,1758045050361,-402.89856406,0.00030136,6]
[385794737,1758045050371,-457.63,0.00030136,6]
[385794738,1758045050380,-405.04860386,0.00030136,6]
[385794739,1758045050388,-400.0,0.00030136,6]
[385794740,1758045050397,-400.0,0.00030136,6]
[385794741,1758045050406,-405.78588919,0.00030136,6]
[385794742,1758045050416,-416.62107922,0.00030136,6]
[385794743,1758045050424,-400.0,0.00030136,6]
[385794744,1758045050433,-400.0,0.00030136,6]
[385794745,1758045050442,-400.0,0.00030136,6]
[385794746,1758045050451,-400.0,0.00030136,6]
[385794747,1758045050460,-400.0,0.00030136,6]
[385794748,1758045050469,-400.0,0.00030136,6]
[385794749,1758045050478,-793.46,0.00030136,6]
[385794750,1758045050487,-400.0,0.00030136,6]
[385794751,1758045050496,-400.0,0.00030136,6]
[385794752,1758045050506,-400.0,0.00030136,6]
[385794753,1758045050516,-151.0,0.00030136,7]
[385794754,1758045050525,-400.0,0.00030136,6]
[385794755,1758045050535,-400.0,0.00030136,6]
[385794756,1758045050544,-400.0,0.00030136,6]
[385794757,1758045050553,-175.95263933,0.00030136,6]
[385794758,1758045050563,-400.0,0.00030136,6]
[385794759,1758045050572,-500.0,0.00030136,6]
[385794760,1758045050581,-400.0,0.00030136,6]
[385794761,1758045050591,-500.0,0.00030136,6]
[385794762,1758045050600,-500.0,0.00030136,6]
[385794763,1758045050610,-368.59741481,0.00030136,6]
[385794764,1758045050619,-400.0,0.00030136,6]
[385794765,1758045050629,-400.0,0.00030136,6]
[385794766,1758045050639,-469.96,0.00030136,6]
[385794767,1758045050648,-400.0,0.00030136,6]
[385794768,1758045050657,-400.0,0.00030136,6]
[385794769,1758045050666,-401.50142446,0.00030136,6]
[385794770,1758045050675,-462.34,0.00030136,6]
[385794771,1758045050685,-400.0,0.00030136,6]
[385794772,1758045050695,-456.01,0.00030136,6]
[385794773,1758045050704,-651.47,0.00030136,6]
[385794774,1758045050712,-500.0,0.00030136,6]
[385794775,1758045050721,-401.76521731,0.00030136,6]
[385794776,1758045050731,-404.20226563,0.00030136,6]
[385794777,1758045050744,-400.0,0.00030136,6]
[385794778,1758045050753,-400.0,0.00030136,6]
[385794779,1758045050761,-400.0,0.00030136,6]
[385794780,1758045050771,-151.0,0.00030136,7]
[385794781,1758045050781,-151.0,0.00030136,7]
[385794782,1758045050790,-400.0,0.00030136,6]
[385794783,1758045050799,-400.0,0.00030136,6]
[385794784,1758045050808,-151.0,0.00030136,7]
[385794785,1758045050818,-151.0,0.00030136,7]
[385794786,1758045050827,-400.0,0.00030136,6]
[385794787,1758045050836,-400.0,0.00030136,6]
[385794788,1758045050845,-400.0,0.00030136,6]
[385794789,1758045050854,-400.0,0.00030136,6]
[385794790,1758045050863,-400.0,0.00030136,6]
[385794791,1758045050873,-400.0,0.00030136,6]
[385794792,1758045050882,-720.85,0.00030136,6]
[385794793,1758045050891,-552.75,0.00030136,6]
[385794794,1758045050900,-400.0,0.00030136,6]
[385794795,1758045050909,-400.0,0.00030136,6]
[385794796,1758045050918,-400.0,0.00030136,6]
[385794797,1758045050927,-400.0,0.00030136,6]
[385794798,1758045050936,-400.0,0.00030136,6]
[385794799,1758045050945,-400.0,0.00030136,6]
[385794800,1758045050954,-400.0,0.00030136,6]
[385794801,1758045050963,-400.0,0.00030136,6]
[385794802,1758045050972,-400.0,0.00030136,6]
[385794803,1758045050981,-690.09,0.00030136,6]
[385794804,1758045050990,-400.0,0.00030136,6]
[385794805,1758045050999,-706.37,0.00030136,6]
[385794806,1758045051009,-400.0,0.00030136,6]
[385794807,1758045051018,-400.0,0.00030136,6]
[385794808,1758045051027,-400.0,0.00030136,6]
[385794809,1758045051036,-400.71194964,0.00030136,6]
[385794810,1758045051046,-400.0,0.00030136,6]
[385794811,1758045051055,-400.0,0.00030136,6]
[385794812,1758045051139,-400.0,0.00030136,6]
[385794813,1758045051148,-400.0,0.00030136,6]
[385794814,1758045051157,-585.77,0.00030136,6]
[385794815,1758045051166,-402.36942404,0.00030136,6]
[385794816,1758045051175,-537.07,0.00030136,6]
[385794817,1758045051184,-400.0,0.00030136,6]
[385794818,1758045051193,-400.0,0.00030136,6]
[385794819,1758045051202,-400.0,0.00030136,6]
[385794820,1758045051211,-400.0,0.00030136,6]
[385794821,1758045051219,-400.0,0.00030136,6]
[385794822,1758045051228,-544.17,0.00030136,6]
[385794823,1758045051237,-400.0,0.00030136,6]
[385794824,1758045051246,-400.0,0.00030136,6]
[385794825,1758045051255,-400.0,0.00030136,6]
[385794826,1758045051263,-500.0,0.00030136,6]
[385794827,1758045051272,-500.0,0.00030136,6]
[385794828,1758045051281,-400.0,0.00030136,6]
[385794829,1758045051290,-476.95,0.00030136,6]
[385794830,1758045051299,-400.0,0.00030136,6]
[385794831,1758045051307,-400.0,0.00030136,6]
[385794832,1758045051316,-400.93381207,0.00030136,6]
[385794833,1758045051325,-400.0,0.00030136,6]
[385794834,1758045051334,-400.0,0.00030136,6]
[385794835,1758045051343,-400.0,0.00030136,6]
[385794836,1758045051352,-400.0,0.00030136,6]
[385794837,1758045051360,-400.0,0.00030136,6]
[385794838,1758045051369,-400.0,0.00030136,6]
[385794839,1758045051378,-400.0,0.00030136,6]
[385794840,1758045051387,-400.0,0.00030136,6]
[385794841,1758045051395,-405.60868589,0.00030136,6]
[385794842,1758045051404,-400.0,0.00030136,6]
[385794843,1758045051413,-400.0,0.00030136,6]
[385794844,1758045051422,-400.0,0.00030136,6]
[385794845,1758045051431,-400.0,0.00030136,6]
[385794846,1758045051440,-400.0,0.00030136,6]
[385794847,1758045051449,-400.0,0.00030136,6]
[385794848,1758045051458,-400.0,0.00030136,6]
[385794849,1758045051466,-3811.5872847,0.00030136,2]
[385794850,1758045051475,-400.0,0.00030136,6]
[385794851,1758045051484,-365.3333,0.00030136,6]
[385794852,1758045051493,-400.0,0.00030136,6]
[385794853,1758045051502,-400.0,0.00030136,6]
[385794854,1758045051511,-263.48383011,0.00030136,6]
[385794855,1758045051519,-301.06626307,0.00030136,6]
[385794856,1758045051528,-400.0,0.00030136,6]
[385794857,1758045051537,-403.38603761,0.00030136,6]
[385794858,1758045051546,-400.0,0.00030136,6]
[385794859,1758045051555,-713.8,0.00030136,6]
[385794860,1758045051563,-400.0,0.00030136,6]
[385794861,1758045051572,-400.0,0.00030136,6]
[385794862,1758045051581,-468.12,0.00030136,6]
[385794863,1758045051590,-400.47739631,0.00030136,6]
[385794864,1758045051599,-400.0,0.00030136,6]
[385794865,1758045051607,-400.0,0.00030136,6]
[385794866,1758045051616,-400.0,0.00030136,6]
[385794867,1758045051624,-400.0,0.00030136,6]
[385794868,1758045051633,-559.02,0.00030136,6]
[385794869,1758045051642,-438.96632617,0.00030136,6]
[385794870,1758045051651,-400.0,0.00030136,6]
[385794871,1758045051660,-400.0,0.00030136,6]
[385794872,1758045051669,-400.0,0.00030136,6]
[385794873,1758045051679,-400.0,0.00030136,6]
[385794874,1758045051688,-500.0,0.00030136,6]
[385794875,1758045051697,-400.0,0.00030136,6]
[385794876,1758045051705,-500.0,0.00030136,6]
[385794877,1758045051714,-500.0,0.00030136,6]
[385794878,1758045051723,-400.35808857,0.00030136,6]
[385794879,1758045051733,-500.0,0.00030136,6]
[385794880,1758045051744,-500.0,0.00030136,6]
[385794881,1758045051752,-500.0,0.00030136,6]
[385794882,1758045051761,-400.0,0.00030136,6]
[385794883,1758045051770,-400.0,0.00030136,6]
[385794884,1758045051780,-2704.51,0.00030136,6]
[385794885,1758045051789,-647.6,0.00030136,6]
[385794886,1758045051798,-449.78239941,0.00030136,6]
[385794887,1758045051807,-401.01168762,0.00030136,6]
[385794888,1758045051817,-400.0,0.00030136,6]
[385794889,1758045051826,-400.0,0.00030136,6]
[385794890,1758045051835,-1051.78,0.00030136,6]
[385794891,1758045051844,-400.0,0.00030136,6]
[385794892,1758045051852,-400.0,0.00030136,6]
[385794893,1758045051861,-260.151172,0.00030136,7]
[385794894,1758045051870,-151.0,0.00030136,7]
[385794895,1758045051879,-535.0,0.00030136,6]
[385794896,1758045051887,-400.0,0.00030136,6]
[385794897,1758045051897,-400.0,0.00030136,6]
[385794898,1758045051905,-401.4399321,0.00030136,6]
[385794899,1758045051914,-400.0,0.00030136,6]
[385794900,1758045051923,-400.0,0.00030136,6]
[385794901,1758045051933,-151.0,0.00030136,7]
[385794902,1758045051942,-400.0,0.00030136,6]
[385794903,1758045051951,-400.0,0.00030136,6]
[385794904,1758045051960,-504.14,0.00030136,6]
[385794905,1758045051969,-404.99047914,0.00030136,6]
[385794906,1758045051978,-400.0,0.00030136,6]
[385794907,1758045051987,-400.0,0.00030136,6]
[385794908,1758045051996,-400.0,0.00030136,6]
[385794909,1758045052005,-401.95084181,0.00030136,6]
[385794910,1758045052014,-572.87,0.00030136,6]
[385794911,1758045052022,-1027.34,0.00030136,6]
[385794912,1758045052031,-485.66,0.00030136,6]
[385794913,1758045052040,-400.0,0.00030136,6]
[385794914,1758045052051,-798.39,0.00030136,6]
[385794915,1758045052060,-517.67,0.00030136,6]
[385794916,1758045052069,-400.0,0.00030136,6]
[385794917,1758045052078,-500.0,0.00030136,6]
[385794918,1758045052087,-500.0,0.00030136,6]
[385794919,1758045052096,-500.00008049,0.00030136,6]
[385794920,1758045052105,-400.0,0.00030136,6]
[385794921,1758045052114,-400.0,0.00030136,6]
[385794922,1758045052126,-400.0,0.00030136,6]
[385794923,1758045052137,-400.0,0.00030136,6]
[385794924,1758045052146,-401.83070924,0.00030136,6]
[385794925,1758045052156,-400.0,0.00030136,6]
[385794926,1758045052175,-400.0,0.00030136,6]
[385794927,1758045052187,-400.0,0.00030136,6]
[385794928,1758045052196,-500.0,0.00030136,6]
[385794929,1758045052205,-500.0,0.00030136,6]
[385794930,1758045052214,-400.0,0.00030136,6]
[385794931,1758045052230,-552.52726845,0.00030136,6]
[385794932,1758045052239,-277.09704768,0.00030136,6]
[385794933,1758045052247,-400.0,0.00030136,6]
[385794934,1758045052256,-479.24,0.00030136,6]
[385794935,1758045052265,-645.17,0.00030136,6]
[385794936,1758045052274,-678.46,0.00030136,6]
[385794937,1758045052283,-403.29063644,0.00030136,6]
[385794938,1758045052292,-400.0,0.00030136,6]
[385794939,1758045052301,-400.0,0.00030136,6]
[385794940,1758045052310,-402.79190242,0.00030136,6]
[385794941,1758045052319,-400.0,0.00030136,6]
[385794942,1758045052328,-400.0,0.00030136,6]
[385794943,1758045052336,-2518.82,0.00030136,6]
[385794944,1758045052345,-400.0,0.00030136,6]
[385794945,1758045052354,-2394.1,0.00030136,6]
[385794946,1758045052363,-400.0,0.00030136,6]
[385794947,1758045052372,-408.32880529,0.00030136,6]
[385794948,1758045052381,-400.0,0.00030136,6]
[385794949,1758045052390,-400.0,0.00030136,6]
[385794950,1758045052398,-400.0,0.00030136,6]
[385794951,1758045052407,-1122.06,0.00030136,6]
[385794952,1758045052416,-400.0,0.00030136,6]
[385794953,1758045052426,-400.0,0.00030136,6]
[385794954,1758045052435,-901.28,0.00030136,6]
[385794955,1758045052444,-400.0,0.00030136,6]
[385794956,1758045052453,-400.0,0.00030136,6]
[385794957,1758045052462,-401.41563602,0.00030136,6]
[385794958,1758045052471,-400.0,0.00030136,6]
[385794959,1758045052479,-775.69,0.00030136,6]
[385794960,1758045052489,-400.0,0.00030136,6]
[385794961,1758045052498,-424.63,0.00030136,6]
[385794962,1758045052507,-400.0,0.00030136,6]
[385794963,1758045052516,-400.0,0.00030136,6]
[385794964,1758045052525,-1032.12,0.00030136,6]
[385794965,1758045052534,-400.0,0.00030136,6]
[385794966,1758045052544,-400.0,0.00030136,6]
[385794967,1758045052554,-400.0,0.00030136,6]
[385794968,1758045052564,-400.0,0.00030136,6]
[385794969,1758045052578,-400.0,0.00030136,6]
[385794970,1758045052589,-401.00065182,0.00030136,6]
[385794971,1758045052598,-492.88,0.00030136,6]
[385794972,1758045052606,-400.0,0.00030136,6]
[385794973,1758045052615,-744.22,0.00030136,6]
[385794974,1758045052624,-400.0,0.00030136,6]
[385794975,1758045052633,-400.0,0.00030136,6]
[385794976,1758045052643,-400.0,0.00030136,6]
[385794977,1758045052652,-400.0,0.00030136,6]
[385794978,1758045052661,-400.0,0.00030136,6]
[385794979,1758045052670,-400.0,0.00030136,6]
[385794980,1758045052679,-501.48739307,0.00030136,6]
[385794981,1758045052688,-400.0,0.00030136,6]
[385794982,1758045052697,-300.0,0.00030136,6]
[385794983,1758045052707,-612.05,0.00030136,6]
[385794984,1758045052715,-400.0,0.00030136,6]
[385794985,1758045052723,-544.29,0.00030136,6]
[385794986,1758045052732,-571.49,0.00030136,6]
[385794987,1758045052745,-400.0,0.00030136,6]
[385794988,1758045052754,-400.0,0.00030136,6]
[385794989,1758045052763,-400.0,0.00030136,6]
[385794990,1758045052771,-401.45574771,0.00030136,6]
[385794991,1758045052781,-400.0,0.00030136,6]
[385794992,1758045052790,-400.0,0.00030136,6]
[385794993,1758045052798,-400.0,0.00030136,6]
[385794994,1758045052807,-512.94,0.00030136,6]
[385794995,1758045052817,-400.0,0.00030136,6]
[385794996,1758045052826,-712.95,0.00030136,6]
[385794997,1758045052834,-400.0,0.00030136,6]
[385794998,1758045052843,-400.0,0.00030136,6]
[385794999,1758045052852,-486.93,0.00030136,6]
[385795000,1758045052862,-526.21,0.00030136,6]
[385795001,1758045052870,-400.0,0.00030136,6]
[385795002,1758045052880,-400.0,0.00030136,6]
[385795003,1758045052888,-585.16,0.00030136,6]
[385795004,1758045052897,-400.0,0.00030136,6]
[385795005,1758045052907,-400.0,0.00030136,6]
[385795006,1758045052915,-400.0,0.00030136,6]
[385795007,1758045052924,-866.22,0.00030136,6]
[385795008,1758045052933,-400.0,0.00030136,6]
[385795009,1758045052942,-400.0,0.00030136,6]
[385795010,1758045052951,-672.85,0.00030136,6]
[385795011,1758045052961,-400.0,0.00030136,6]
[385795012,1758045052970,-467.42,0.00030136,6]
[385795013,1758045052978,-400.86241152,0.00030136,6]
[385795014,1758045052987,-400.0,0.00030136,6]
[385795015,1758045052996,-400.0,0.00030136,6]
[385795016,1758045053005,-400.0,0.00030136,6]
[385795017,1758045053014,-692.62,0.00030136,6]
[385795018,1758045053023,-657.33,0.00030136,6]
[385795019,1758045053031,-400.0,0.00030136,6]
[385795020,1758045053040,-400.0,0.00030136,6]
[385795021,1758045053049,-400.0,0.00030136,6]
[385795022,1758045053058,-2773.36,0.00030136,6]
[385795023,1758045053067,-401.19545008,0.00030136,6]
[385795024,1758045053075,-437.19,0.00030136,6]
[385795025,1758045053084,-400.0,0.00030136,6]
[385795026,1758045053093,-614.39,0.00030136,6]
[385795027,1758045053102,-514.66,0.00030136,6]
[385795028,1758045053111,-400.0,0.00030136,6]
[385795029,1758045053125,-300.0,0.00030136,6]
[385795030,1758045053134,-400.0,0.00030136,6]
[385795031,1758045053144,-400.0,0.00030136,6]
[385795032,1758045053154,-402.55848499,0.00030136,6]
[385795033,1758045053163,-400.0,0.00030136,6]
[385795034,1758045053174,-508.9,0.00030136,6]
[385795035,1758045053183,-400.0,0.00030136,6]
[385795036,1758045053194,-400.0,0.00030136,6]
[385795037,1758045053203,-688.36,0.00030136,6]
[385795038,1758045053213,-400.0,0.00030136,6]
[385795039,1758045053221,-400.0,0.00030136,6]
[385795040,1758045053232,-400.0,0.00030136,6]
[385795041,1758045053241,-400.0,0.00030136,6]
[385795042,1758045053250,-1181.26,0.00030136,6]
[385795043,1758045053259,-403.13529865,0.00030136,6]
[385795044,1758045053268,-400.0,0.00030136,6]
[385795045,1758045053277,-500.0,0.00030136,6]
[385795046,1758045053287,-400.0,0.00030136,6]
[385795047,1758045053296,-152.968108,0.00030136,7]
[385795048,1758045053305,-500.0,0.00030136,6]
[385795049,1758045053313,-1000.71,0.00030136,6]
[385795050,1758045053322,-400.0,0.00030136,6]
[385795051,1758045053330,-400.0,0.00030136,6]
[385795052,1758045053339,-400.0,0.00030136,6]
[385795053,1758045053348,-400.0,0.00030136,6]
[385795054,1758045053357,-400.0,0.00030136,6]
[385795055,1758045053366,-400.0,0.00030136,6]
[385795056,1758045053375,-400.0,0.00030136,6]
[385795057,1758045053383,-400.0,0.00030136,6]